Cogmind - Beta 15 @@@ ROGUE MODE // 2025.09.12 @ 22:22:44 Player: Goddess Complex Result: Destroyed by G-47 Trooper with Particle Gun Performance ------------- Evolutions (2) 1000 Regions Visited (3) 600 Robots Destroyed (24) 120 Value Destroyed (741) 741 Prototype IDs (0) 0 Alien Tech Used (0) 0 Bonus (0) 0 TOTAL SCORE: 2461 Bonus ------- None Cogmind --------- Core Integrity 0/550 Matter 129/300 Energy 99/100 System Corruption 13% Temperature Cool (9) Movement Core (50) Location -8/Materials Parts ------- > --- POWER (1) -------- (None) > --- PROPULSION (3) --- (None) > --- UTILITY (5) ------ (None) > --- WEAPON (2) ------- (None) > --- INVENTORY (5) ---- Ion Engine VSS Leg Medium Storage Unit Hardened Medium Armor Plating Hacking Suite Peak State ------------ > --- POWER ------------ Improved Ion Engine > --- PROPULSION ------- Aluminum Leg Aluminum Leg Carbon-fiber Leg > --- UTILITY ---------- Medium Storage Unit Structural Scanner Targeting Computer ECM Suite Hardened Light Armor Plating > --- WEAPON ----------- Field Laser Minigun > --- INVENTORY -------- Ion Engine Aluminum Leg Aluminum Leg Aluminum Leg Heat Sink Reaction Control System Hardened Light Armor Plating Hacking Suite Heavy EM Pulse Gun Heavy EM Pulse Gun [Rating: 20] Favorites ----------- Power Ion Engine Engine Ion Engine Power Core Nuclear Core Propulsion Aluminum Leg Treads Light Treads Leg Aluminum Leg Utility Medium Storage Unit Device Structural Scanner Storage Medium Storage Unit Processor Targeting Computer Protection Hardened Light Armor Plating Weapon Light Assault Rifle Energy Gun Medium Laser Ballistic Gun Light Assault Rifle Launcher Missile Launcher Build | -11 -10 -9 -8 ------- Run | Yrd Mat Mat Mat Slots Evolved 4 | . . 2 2 Power . | . . . . Propulsion 1 | . . 1 . Utility 3 | . . 1 2 Weapon . | . . . . Parts Attached 44 | 6 7 8 23 Power 7 | . 1 1 5 Engine 5 | . 1 1 3 Core 2 | . . . 2 Reactor . | . . . . Propulsion 14 | 3 . 6 5 Treads 1 | 1 . . . Leg 13 | 2 . 6 5 Wheel . | . . . . Hover . | . . . . Flight . | . . . . Utility 13 | . 6 . 7 Device 6 | . 2 . 4 Storage 3 | . 3 . . Processor 1 | . 1 . . Hackware . | . . . . Protection 3 | . . . 3 Artifact . | . . . . Weapon 10 | 3 . 1 6 Energy Gun 6 | 1 . 1 4 Energy Cannon . | . . . . Ballistic Gun 3 | 2 . . 1 Ballistic Cannon . | . . . . Launcher 1 | . . . 1 Special Weapon . | . . . . Impact Weapon . | . . . . Slashing Weapon . | . . . . Piercing Weapon . | . . . . Special Melee Weapon . | . . . . Unidentified Prototypes . | . . . . Parts Lost 26 | . . 2 24 Power 4 | . . . 4 Propulsion 8 | . . 1 7 Utility 7 | . . . 7 Weapon 7 | . . 1 6 Highest Loss Streak 12 | . . 2 12 To Critical Strikes . | . . . . Average Backups 7 | 3 7 9 6 Power 1 | 1 2 1 1 Propulsion 2 | . 2 3 1 Utility 2 | . 1 3 2 Weapon 1 | . 1 1 1 Tool/Special . | . . . . Unused Backups 8 | . 2 2 4 Power . | . . . . Propulsion 2 | . 1 . 1 Utility 6 | . 1 2 3 Weapon . | . . . . Tool/Special . | . . . . Average Slot Usage (%) 85 | . 90 99 76 Engine 8 | . 9 11 6 Leg 26 | . 28 33 22 Device 9 | . 2 10 12 Storage 9 | . 10 11 8 Processor 7 | . 9 11 4 Protection 2 | . . . 5 Energy Gun 10 | . 14 9 8 Ballistic Gun 8 | . 14 11 5 Peak Build Rating 20 | 4 8 10 20 Average Rating 11 | 2 6 9 14 On Entrance 5 | . 4 8 10 Naked Turns 32 | . . . 32 Heaviest Build 31 | 3 18 19 31 Greatest Support 35 | 20 26 30 35 Greatest Overweight (x) 6 | . . . 6 Average Overweight (x) . | . . . . Largest Inventory Capacity 20 | 5 20 10 10 Average Capacity 9 | 5 8 10 9 Most Carried 10 | 5 10 10 10 Average Carried 7 | 3 7 9 6 Final Capacity 10 | 5 10 10 5 Final Carried 10 | 4 10 8 5 Class Distribution -------------------- 74% | Mutant 25% | Infiltrator-Mutant Dominant Class ---------------- Mutant | -10/Materials Mutant | -9/Materials Mutant | -8/Materials Resources | -11 -10 -9 -8 ----------- Run | Yrd Mat Mat Mat Matter Collected 624 | 171 80 194 179 Remotely . | . . . . Salvage Created 774 | . 134 285 355 Parts 39 | . 2 18 19 Haulers Intercepted 1 | . 1 . . Recyclers Shooed 2 | . . . 2 Parts Field Recycled . | . . . . Retrieved Matter . | . . . . Parts Self-Destructed . | . . . . Prevented . | . . . . Kills | -11 -10 -9 -8 ------- Run | Yrd Mat Mat Mat Combat Hostiles Destroyed 17 | . 1 6 10 Guns 13 | . 1 6 6 AOE 4 | . . . 4 Classes Destroyed 8 | . 3 1 4 Worker 1 | . . . 1 Builder 1 | . . 1 . Hauler 1 | . 1 . . Watcher 4 | . 1 1 2 Swarmer 3 | . . . 3 Grunt 11 | . 1 6 4 Brawler 1 | . . . 1 Sentry 2 | . . . 2 Best Kill Streak 7 | . 1 3 7 Combat Bots Only 5 | . 1 3 5 Max Kills in Single Turn 2 | . 1 2 2 Gunslinging 1 | . . . 1 Exploded 2 | . . . 2 Melee . | . . . . Uniques/NPCs Destroyed . | . . . . Combat | -11 -10 -9 -8 -------- Run | Yrd Mat Mat Mat Hostile Shots Fired 328 | . 12 65 251 Missed 96 | . 1 25 70 Hits 232 | . 11 40 181 Melee 5 | . . . 5 Projectile 227 | . 11 40 176 Critical Strikes 10 | . . . 10 Damage Taken 3339 | . 168 616 2555 Core 670 | . 55 62 553 Absorbed by Shields . | . . . . Regen/Repaired (Parts) 78 | . . . 78 Core Remaining (%) 87 | 100 78 84 . Volleys Fired 80 | . 16 24 40 Largest 2 | . 2 2 2 Hottest 101 | . 70 60 101 Shots Fired 155 | . 32 48 75 Gun 148 | . 32 48 68 Cannon . | . . . . Launcher 7 | . . . 7 Special . | . . . . Kinetic 63 | . 16 24 23 Thermal 46 | . 16 . 30 Explosive 7 | . . . 7 Electromagnetic 39 | . . 24 15 Robot Hit Streak 8 | . 4 7 8 Robot Miss Streak 4 | . 4 1 3 Penetration Max . | . . . . Secondary Targets 4 | . . 1 3 Max Gunslinging Chain 1 | . . 1 1 Shots Hit Robots 102 | . 18 35 49 Core Hits 47 | . 7 15 25 Critical Kills . | . . . . Critical Parts Destroyed 1 | . . 1 . Critical Strikes 5 | . 1 3 1 Burn 2 | . 1 . 1 Destroy 1 | . . 1 . Corrupt 2 | . . 2 . Melee Attacks . | . . . . Impact . | . . . . Slashing . | . . . . Piercing . | . . . . Sneak Attacks . | . . . . Combat Hostiles . | . . . . Follow-up Attacks . | . . . . Damage Inflicted 2559 | . 199 731 1629 Guns 1324 | . 199 437 688 Cannons . | . . . . Explosions 1206 | . . 294 912 Melee . | . . . . Ramming 29 | . . . 29 Kinetic 494 | . 87 137 270 Thermal 719 | . 112 294 313 Explosive 877 | . . . 877 Electromagnetic 440 | . . 300 140 Impact . | . . . . Slashing . | . . . . Piercing . | . . . . Highest Corruption 13 | . . . 13 Average Corruption 12 | . . . 12 Corruption Purged . | . . . . Corruption Blocked . | . . . . Effects 19 | . . . 19 Message Errors 4 | . . . 4 Matter Fused 2 | . . . 2 Heat Flow Errors 1 | . . . 1 Energy Discharges 2 | . . . 2 Parts Rejected 3 | . . . 3 Data Loss (minor) 2 | . . . 2 Misdirections 4 | . . . 4 Weapon Failures 1 | . . . 1 Overload Shots . | . . . . Overflow Damage . | . . . . Projectiles . | . . . . Explosions . | . . . . Melee . | . . . . Knockbacks . | . . . . Impact . | . . . . Kinetic . | . . . . Secondary . | . . . . Self-Inflicted Damage 90 | . . 72 18 Shots 3 | . . 2 1 Rammed . | . . . . Targets Rammed 7 | . . . 7 Kicked 7 | . . . 7 Crushed . | . . . . Highest Temperature 316 | . 201 61 316 Average Temperature 76 | . 73 20 97 Received Heat Transfer 1515 | . 96 231 1188 Effects 3 | . . . 3 Interference 2 | . . . 2 Damage (minor) 1 | . . . 1 Siege Activations . | . . . . Martial Activations . | . . . . Shielding Activations . | . . . . Robots Disrupted . | . . . . Combat Hostiles . | . . . . Robots Corrupted . | . . . . Combat Hostiles . | . . . . Parts Fried . | . . . . Impact Corruptions . | . . . . Robots Melted . | . . . . Combat Hostiles . | . . . . Parts Melted 1 | . . . 1 Heat Transferred 1510 | . 407 350 753 Parts Sabotaged . | . . . . Parts Stolen . | . . . . Parts Stripped . | . . . . Power Chain Reactions 4 | . . 3 1 Alert | -11 -10 -9 -8 ------- Run | Yrd Mat Mat Mat Maximum Alert Level . | . . . . Low Security (%) 100 | 100 100 100 100 Level 1 . | . . . . Level 2 . | . . . . Level 3 . | . . . . Level 4 . | . . . . Level 5 . | . . . . High Security . | . . . . Max Security . | . . . . Peak Influence 149 | . 45 98 149 Initial 34 | . . 14 34 Average 31 | . 3 42 41 Influence Increases 712 | . 59 203 450 Destroy 0b10 Robot/C 340 | . 20 120 200 Destroy 0b10 Robot/NC 35 | . 10 10 15 Destroy Leader 90 | . 14 32 44 Successful Hack 2 | . . . 2 Disable Machine 45 | . . 15 30 Destroy Structure 35 | . . 11 24 Lose Combat Pursuer 165 | . 15 15 135 Influence Decreases 662 | . 24 155 483 Entered New Map 70 | . . 21 49 Time Decay 392 | . 24 114 254 Lost Part 200 | . . 20 180 Squads Dispatched 7 | . 1 1 5 Investigation 1 | . . . 1 Extermination . | . . . . Reinforcement 6 | . 1 1 4 Assault . | . . . . Garrison . | . . . . Intercept . | . . . . Searches Triggered . | . . . . Construction Impeded 1 | . . . 1 Haulers Reinforced . | . . . . Active Scanning Responses . | . . . . Cargo Convoy Interrupts . | . . . . Stealth | -11 -10 -9 -8 --------- Run | Yrd Mat Mat Mat Distress Signals 3 | . . . 3 Communications Jammed . | . . . . Distress Signals . | . . . . Times Spotted 54 | . 4 13 37 Peak Tracking Total 9 | . 2 5 9 Tactical Retreats 12 | . 1 1 10 Traps | -11 -10 -9 -8 ------- Run | Yrd Mat Mat Mat Traps Triggered 1 | . . . 1 Indirectly . | . . . . Trap Hack Attempts . | . . . . Triggered . | . . . . Disarmed . | . . . . Reprogrammed . | . . . . Reused . | . . . . Traps Extracted . | . . . . Installed . | . . . . Triggered . | . . . . Machines | -11 -10 -9 -8 ---------- Run | Yrd Mat Mat Mat Machines Disabled 3 | . . 1 2 Max in Single Turn 1 | . . 1 1 Machines Repaired . | . . . . Machines Dismantled . | . . . . Machines Sabotaged . | . . . . Overloaded Fab Kills . | . . . . Hacking | -11 -10 -9 -8 --------- Run | Yrd Mat Mat Mat Machines Accessed 6 | . 1 . 5 Terminals 3 | . 1 . 2 Fabricators . | . . . . Repair Stations 1 | . . . 1 Recycling Units . | . . . . Scanalyzers 2 | . . . 2 Garrison Access . | . . . . Total Hacks 15 | . 1 . 14 Successful 13 | . 1 . 12 Failed 2 | . . . 2 Catastrophic . | . . . . Database Lockouts . | . . . . Manual . | . . . . Terminals 5 | . 1 . 4 Fabricators . | . . . . Repair Stations 2 | . . . 2 Recycling Units . | . . . . Scanalyzers 8 | . . . 8 Garrison Access . | . . . . Terminal Hacks 3 | . 1 . 2 Record 3 | . 1 . 2 Fabricator Hacks . | . . . . Repair Station Hacks 2 | . . . 2 Scan Component 1 | . . . 1 Repair 1 | . . . 1 Recycling Unit Hacks . | . . . . Scanalyzer 8 | . . . 8 Insert Component 4 | . . . 4 Analyze 4 | . . . 4 Garrison Access Hacks . | . . . . Unauthorized Hacks . | . . . . Terminals . | . . . . Fabricators . | . . . . Repair Stations . | . . . . Recycling Units . | . . . . Scanalyzers . | . . . . Garrison Access . | . . . . Data Cores Recovered . | . . . . Used . | . . . . Hacking Detections 3 | . . . 3 Full Trace Events . | . . . . Feedback Events . | . . . . Feedback Blocked . | . . . . Robot Schematics Acquired . | . . . . Robots Built . | . . . . Authchips . | . . . . Time . | . . . . Total Robot Build Rating . | . . . . Part Schematics Acquired 4 | . . . 4 Parts Built . | . . . . Authchips . | . . . . Time . | . . . . Total Part Build Rating . | . . . . Parts Repaired 1 | . . . 1 Time 26 | . . . 26 Parts Recycled . | . . . . Recycled Matter . | . . . . Retrieved Matter . | . . . . Retrieved Components . | . . . . Parts Scanalyzed 4 | . . . 4 Part Schematics Acquired 4 | . . . 4 Parts Damaged . | . . . . Bothacking | -11 -10 -9 -8 ------------ Run | Yrd Mat Mat Mat Used RIF Installer . | . . . . Robots Hacked . | . . . . Non-combat . | . . . . Combat . | . . . . Robot Hacks Applied . | . . . . Relay Couplers Released . | . . . . Fabnet Peak Effective % . | . . . . Robots Rewired . | . . . . Allies Hacked . | . . . . Hacks Repelled . | . . . . Allies | -11 -10 -9 -8 -------- Run | Yrd Mat Mat Mat Total Allies . | . . . . Largest Group . | . . . . Highest-Rated Group . | . . . . Highest-Rated Ally . | . . . . Total Orders . | . . . . Ally Attacks . | . . . . Total Damage . | . . . . Kills . | . . . . Allies Corrupted . | . . . . Allies Melted . | . . . . Intel | -11 -10 -9 -8 ------- Run | Yrd Mat Mat Mat Active Infowar (turns) 721 | . 51 307 363 Structural 721 | . 51 307 363 ECM 350 | . . . 350 Robot Analysis Total . | . . . . Derelict Logs Recovered . | . . . . Drone Launches . | . . . . Drone Recoveries . | . . . . Exploration | -11 -10 -9 -8 ------------- Run | Yrd Mat Mat Mat Turns Passed 1392 | 52 303 308 729 Spaces Moved 802 | 47 189 170 396 Core 100 | 27 . . 73 Treads . | . . . . Legs 702 | 20 189 170 323 Wheels . | . . . . Hover . | . . . . Flight . | . . . . Fastest Speed 50 | 50 120 120 50 Average Speed 119 | 79 120 120 123 Slowest Speed 350 | 120 120 120 350 Overloaded Moves . | . . . . Propulsion Burnouts . | . . . . Robots Hopped . | . . . . Potential Cave-ins . | . . . . Cave-ins Triggered . | . . . . Exploration Rate (%) 28 | 4 38 24 46 Regions Visited 3 Branch Regions . Pre-discovered Areas . | . . . . Known Exits Taken . | . . . . Unknown Exits Taken 3 | 1 1 1 . Scrap Searched . | . . . . Spaces Dug . | . . . . Terrain Destroyed 32 | . . 8 24 Melee . | . . . . Projectile . | . . . . AOE 32 | . . 8 24 Terrain Rammed . | . . . . Walls Destroyed . | . . . . Machines Disabled . | . . . . Actions | -11 -10 -9 -8 --------- Run | Yrd Mat Mat Mat Total 1094 | 60 239 232 563 Wait 78 | . 2 10 66 Move 799 | 46 188 169 396 Hop . | . . . . Pick Up 51 | 6 15 9 21 Fast Attach 8 | 3 2 2 1 Attach 29 | 2 2 4 21 Detach 3 | 1 1 . 1 Swap 14 | 1 4 5 4 Drop 25 | 1 9 9 6 Fire 80 | . 16 24 40 Melee . | . . . . Ram . | . . . . Kick 7 | . . . 7 Crush . | . . . . Escape Stasis . | . . . . Rewire . | . . . . Trap . | . . . . Miscellaneous . | . . . . Route ------- -11/Scrapyard -10/Materials -9/Materials (discovered 2 exits: *Mat / [*Min]) -8/Materials History --------- Turn | Location | Event 10 | -11/Scrapyard | Discovered new exit (range 15) 53 | -11/Scrapyard | Entered Materials 302 | -10/Materials | Build established: Mutant 335 | -10/Materials | Discovered new exit (range 3) 356 | -10/Materials | Entered another Materials area 356 | -9/Materials | Evolved 2 slots: Propulsion x1, Utility x1 656 | -9/Materials | Discovered new exit (range 8) 657 | -9/Materials | Discovered new exit (range 14) 664 | -9/Materials | Entered another Materials area 664 | -8/Materials | Evolved 2 slots: Utility x2 861 | -8/Materials | Repaired Aluminum Leg 958 | -8/Materials | Build established: Infiltrator-Mutant 1028 | -8/Materials | System corruption reached 10% 1121 | -8/Materials | Lost 12 parts (1p4n5u2w) 1253 | -8/Materials | Lost 3 parts (1p2w) 1270 | -8/Materials | Core integrity fell below 50% 1313 | -8/Materials | Build established: Mutant 1338 | -8/Materials | Core integrity fell below 20% 1359 | -8/Materials | Lost 8 parts (1p3n2u2w) 1393 | -8/Materials | Destroyed by G-47 Trooper with Particle Gun Last Messages --------------- 01348_ Acquired Med. Storage Unit. 01351_ Critical hit (Burn: +37). 01355_ Triggered Alarm Trap. 01355_ An alarm sounds. 01355_ ALERT: Alarm triggered, dispatching investigation squad. 01361_ System corrupted: Rnf. Ion Engine rejected. 01369_ T-07 Excavator is excavating. 01376_ Acquired VSS Leg. 01377_ System corrupted: Energy discharge (-33). 01379_ Acquired Hrd. Medium Armor Plating. 01380_ ALERT: Suspicious intruders detected, dispatching Cutter reinforcements to area. 01387_ O-16 Technician sends out distress signal. 01387_ O-16 Technician: "IFF HANDSHAKE FAILED. SECURING TERMINAL." 01387_ ALERT: Hostiles spotted, dispatching reinforcements to Terminal M002. Map ----- +----------------------------------------------------+ | ?????????????????????????????????????????????????? | | ?????????????????????????????????????????????????? | | ?????????????????????????????????????????????????? | | ?????????????????????????????????????????????????? | | ?????????????????????????????????????????????????? | | ?????????????????????????????????????????????????? | | ?????????????????????????????????????????????????? | | ?????????????????????????????????????????????????? | | ?????????????????????????????????????????????????? | | ?????????????????????????????????????????????????? | | ????????????????????????? ?????????????????????? | | ????????????????????????# ?????????????????????? | | ????????????????????????# ?????????????????????? | | ????????????????????????# #????????????????????? | | ????????????????????????# #????????????????????? | | ????????????????????????# #??????????########??? | | ?????????????#??#"Y"##### #??????????# #??? | | ????????????? #??????????# """ #??? | | ????????????? k #??????????#/ """ #??? | | ?????????????"" g #??????????# """ #??? | | ?????????????"" #??????????# #??? | | ?????????????"" o #??????????# #### | | ?????????????"" "T" ################+## | | ????????????""" """ g | | ?????????? " | | ?????????? u ! @ | | ?????????? ########################## | | ??????????????????????????????????????????????### | | ??????????????????????????????????????????????### | | ??????????????????????????????????????????????# # | | ??????????????????????????????????????????????# | | ??????????????????????????????????????????????### | | ?????????????????????????????########???????????# | | ?????????????????????????????#[ / ########????# | | ?????????????????????????????# !#% / #????#+ | | ?????????????????????????????# """ # #??? | | ???????????????????????####??# """ # """ #? / | | ???????????????????????# ??# """ !# """ ##!!! | | ???????????????????????# ?? ?#] """ ##!!! | | ???????????????????????# ?###+###? ??#!!! ] | | ???????????????????????# """ # #?##+##??# | | ???????????????????????# """ # ### #??###### | | ???????????????????????# """ + #??###### | | ???????????????????????# # ### #??# | | ????###########????????# # #?## ##??# | | ???? ! #????????# //?### ###??# #???# | | ##?# #????????# //??## # #??# #???# | | #?# """ """ #????????# /???#" " #??# #???# | | #?# """ """ #?#+#????# ???#"%=##??# #????? | | #???""" """ ??# #????###????## ##??## ##????##+# | +----------------------------------------------------+ Best States ------------- Heat Dissipation 41 Energy Generation 14 Energy Capacity 265 Matter Stores 300 Matter Capacity 300 Sight Range 16 Terrain Scan Density 10 ECM Strength 1 Additional Mass Support 6 Armor Coverage 150 Evasion (%) 63 Targeting Accuracy 5 Recoil Reduction 4 Item Schematics ----------------- Hrd. Light Armor Plating | -8/Materials | Scanalyzed Carbon-fiber Leg | -8/Materials | Scanalyzed Aluminum Leg | -8/Materials | Scanalyzed Heat Sink | -8/Materials | Scanalyzed Robot Schematics ------------------ None Fabricated ------------ Nothing Repaired ---------- Aluminum Leg | 13% | -8/Materials Alien Tech Used ----------------- None Achievements -------------- None Challenges ------------ None Game ------ Seed SwordSystemCoupler Manual? 0 Play Time 00:29:50 Cumulative 14.7 hours Start 2025.09.12 @ 20:01:08 End 2025.09.12 @ 22:22:44 Sessions 1 Manual Loads 0 Difficulty Rogue Special Mode None Game No. 15 Rogue 15 Adventurer 0 Explorer 0 Win Type - Total 0 Types 0/0/0/0/0/0/0/0/0/0 Lore% 10 Gallery% 19 Achievement% 19 Wizard Run 0 Options --------- Layout 1 ASCII 0 Keyboard 0 Movement Mouse Keybinds 0 Fullscreen 1 Font 32/SmallcapsGlow Map View 50x35 Zoom Use 0% Tactical HUD 1 Map Filters NONE Filters NONE Steam 1 RUN: ed18ce0a-9d58-46af-ae9f-11bb57142d79